Cogmind - Beta 15 @@@ ROGUE MODE // 2025.07.26 @ 16:20:05 Player: Fazzonamite Result: Destroyed by X-62 Marksman with Gauss Rifle Performance ------------- Evolutions (2) 1000 Regions Visited (3) 600 Robots Destroyed (24) 120 Value Destroyed (671) 671 Prototype IDs (3) 60 Alien Tech Used (0) 0 Bonus (0) 0 TOTAL SCORE: 2451 Bonus ------- None Cogmind --------- Core Integrity 0/550 Matter 290/300 Energy 100/100 System Corruption 0% Temperature Cool (5) Movement Core (350) Ox6 Location -8/Materials Parts ------- > --- POWER (1) -------- (None) > --- PROPULSION (3) --- (None) > --- UTILITY (4) ------ Disposable Heat Sink Large Storage Unit > --- WEAPON (3) ------- (None) > --- INVENTORY (15) --- Disposable Heat Sink Small Storage Unit Structural Scanner Improved Signal Interpreter Beam Rifle Beam Rifle Dirty Datajack (20) Remote Datajack Flail Piercing Trap Peak State ------------ > --- POWER ------------ Light Deuterium Engine > --- PROPULSION ------- Light Treads Light Treads Compact Wheel > --- UTILITY ---------- Improved Heat Sink Disposable Heat Sink Large Storage Unit Weapon Shielding > --- WEAPON ----------- Heavy EM Pulse Gun Spread Laser Field Laser > --- INVENTORY -------- Ion Engine Nuclear Core Light Nuclear Core Light Treads Disposable Heat Sink Small Storage Unit Structural Scanner Improved Signal Interpreter Weapon Shielding Beam Rifle Beam Rifle Dirty Datajack Remote Datajack Flail Piercing Trap [Rating: 23] Favorites ----------- Power Ion Engine Engine Ion Engine Power Core Nuclear Core Propulsion Light Treads Treads Light Treads Wheel Compact Wheel Utility Large Storage Unit Device Structural Scanner Storage Large Storage Unit Protection Weapon Shielding Weapon Heavy EM Pulse Gun Energy Gun Heavy EM Pulse Gun Ballistic Gun Light Assault Rifle Impact Weapon Flail Build | -11 -10 -10 -8 ------- Run | Yrd Mat Sub Mat Slots Evolved 4 | . . . 4 Power . | . . . . Propulsion 1 | . . . 1 Utility 2 | . . . 2 Weapon 1 | . . . 1 Parts Attached 28 | 6 4 6 12 Power 4 | 1 . 1 2 Engine 3 | 1 . 1 1 Core 1 | . . . 1 Reactor . | . . . . Propulsion 7 | 2 1 1 3 Treads 4 | 1 1 . 2 Leg . | . . . . Wheel 3 | 1 . 1 1 Hover . | . . . . Flight . | . . . . Utility 8 | 1 1 1 5 Device 5 | 1 . 1 3 Storage 1 | . 1 . . Processor . | . . . . Hackware . | . . . . Protection 2 | . . . 2 Artifact . | . . . . Weapon 9 | 2 2 3 2 Energy Gun 6 | . 2 2 2 Energy Cannon . | . . . . Ballistic Gun 2 | 2 . . . Ballistic Cannon . | . . . . Launcher . | . . . . Special Weapon . | . . . . Impact Weapon 1 | . . 1 . Slashing Weapon . | . . . . Piercing Weapon . | . . . . Special Melee Weapon . | . . . . Unidentified Prototypes . | . . . . Parts Lost 14 | . 1 1 12 Power 2 | . . . 2 Propulsion 5 | . 1 . 4 Utility 3 | . . . 3 Weapon 4 | . . 1 3 Highest Loss Streak 12 | . 1 1 12 To Critical Strikes 1 | . . . 1 Average Backups 11 | 4 8 12 11 Power 1 | . 1 1 2 Propulsion 2 | 1 2 2 . Utility 5 | . 3 6 4 Weapon 2 | 1 1 3 2 Tool/Special . | . . . . Unused Backups 10 | . 1 . 9 Power 1 | . . . 1 Propulsion . | . . . . Utility 3 | . . . 3 Weapon 4 | . 1 . 3 Tool/Special 2 | . . . 2 Average Slot Usage (%) 99 | . 98 100 96 Engine 13 | . 14 14 8 Treads 14 | . 13 14 17 Wheel 13 | . 14 14 8 Device 14 | . 14 14 17 Storage 12 | . 12 14 9 Protection 1 | . . . 8 Energy Gun 20 | . 1 27 25 Ballistic Gun 6 | . 26 . . Peak Build Rating 23 | 8 13 13 23 Average Rating 11 | 3 9 11 19 On Entrance 8 | . 8 13 13 Naked Turns . | . . . . Heaviest Build 39 | 8 32 32 39 Greatest Support 20 | 20 10 20 16 Greatest Overweight (x) 3 | . 3 1 2 Average Overweight (x) 1 | . 1 1 2 Largest Inventory Capacity 15 | 5 15 15 15 Average Capacity 14 | 5 14 15 15 Most Carried 15 | 5 15 15 15 Average Carried 12 | 4 9 13 12 Final Capacity 15 | 5 15 15 15 Final Carried 15 | 5 15 14 10 Class Distribution -------------------- 86% | Mutant 6% | Gunner 4% | Skirmisher Dominant Class ---------------- Mutant | -10/Materials Mutant | -10/Subcaves Gunner | -8/Materials Resources | -11 -10 -10 -8 ----------- Run | Yrd Mat Sub Mat Matter Collected 582 | 124 253 145 60 Remotely . | . . . . Salvage Created 946 | 24 332 226 364 Parts 53 | 2 16 15 20 Haulers Intercepted . | . . . . Recyclers Shooed . | . . . . Parts Field Recycled . | . . . . Retrieved Matter . | . . . . Parts Self-Destructed 4 | . . 4 . Prevented . | . . . . Kills | -11 -10 -10 -8 ------- Run | Yrd Mat Sub Mat Combat Hostiles Destroyed 20 | . 10 4 6 Guns 19 | . 10 3 6 Classes Destroyed 8 | 1 2 1 4 Tunneler 1 | 1 . . . Recycler 1 | . . . 1 Watcher 2 | . . . 2 Swarmer 7 | . 4 . 3 Grunt 6 | . 6 . . Sentry 2 | . . . 2 Heavy 1 | . . . 1 Subdweller 4 | . . 4 . Best Kill Streak 4 | 1 2 2 4 Combat Bots Only 3 | . 2 2 3 Max Kills in Single Turn 1 | 1 1 1 1 Gunslinging . | . . . . Exploded . | . . . . Melee . | . . . . Uniques/NPCs Destroyed . | . . . . Combat | -11 -10 -10 -8 -------- Run | Yrd Mat Sub Mat Hostile Shots Fired 196 | . 58 19 119 Missed 52 | . 18 4 30 Hits 144 | . 40 15 89 Projectile 144 | . 40 15 89 Critical Strikes 7 | . . . 7 Actively Blocked 2 | . . . 2 Damage Taken 2355 | . 396 326 1633 Core 800 | . 86 151 563 Absorbed by Shields . | . . . . Redirected to Shielding 101 | . . . 101 Core Remaining (%) 52 | 100 . 5 . Volleys Fired 88 | 5 46 15 22 Largest 3 | 2 2 2 3 Hottest 173 | 40 40 90 173 Shots Fired 191 | 10 92 29 60 Gun 191 | 10 92 29 60 Cannon . | . . . . Launcher . | . . . . Special . | . . . . Kinetic 102 | 10 92 . . Thermal 15 | . . . 15 Explosive . | . . . . Electromagnetic 74 | . . 29 45 Robot Hit Streak 23 | 2 9 23 10 Robot Miss Streak 3 | 2 3 1 2 Penetration Max . | . . . . Secondary Targets . | . . . . Shots Hit Robots 128 | 6 55 26 41 Core Hits 54 | 2 21 7 24 Critical Kills 1 | . 1 . . Critical Parts Destroyed . | . . . . Critical Strikes 1 | . 1 . . Destroy 1 | . 1 . . Melee Attacks 6 | . . 6 . Impact 6 | . . 6 . Slashing . | . . . . Piercing . | . . . . Sneak Attacks . | . . . . Combat Hostiles . | . . . . Follow-up Attacks . | . . . . Damage Inflicted 1543 | 52 460 334 697 Guns 1543 | 52 460 334 697 Cannons . | . . . . Explosions . | . . . . Melee . | . . . . Ramming . | . . . . Kinetic 512 | 52 460 . . Thermal 244 | . . . 244 Explosive . | . . . . Electromagnetic 787 | . . 334 453 Impact . | . . . . Slashing . | . . . . Piercing . | . . . . Highest Corruption . | . . . . Average Corruption . | . . . . Corruption Purged . | . . . . Corruption Blocked . | . . . . Overload Shots . | . . . . Overflow Damage . | . . . . Projectiles . | . . . . Explosions . | . . . . Melee . | . . . . Knockbacks . | . . . . Impact . | . . . . Kinetic . | . . . . Secondary . | . . . . Self-Inflicted Damage . | . . . . Shots . | . . . . Rammed . | . . . . Targets Rammed . | . . . . Kicked . | . . . . Crushed . | . . . . Highest Temperature 196 | . 18 . 196 Average Temperature 42 | . 8 . 54 Received Heat Transfer 651 | . 123 96 432 Siege Activations . | . . . . Martial Activations . | . . . . Shielding Activations . | . . . . Robots Disrupted . | . . . . Combat Hostiles . | . . . . Robots Corrupted 1 | . . 1 . Combat Hostiles 1 | . . 1 . Parts Fried 10 | . 1 5 4 Impact Corruptions . | . . . . Robots Melted . | . . . . Combat Hostiles . | . . . . Parts Melted 4 | . . . 4 Heat Transferred 424 | . . . 424 Parts Sabotaged . | . . . . Parts Stolen . | . . . . Parts Stripped . | . . . . Power Chain Reactions . | . . . . Alert | -11 -10 -10 -8 ------- Run | Yrd Mat Sub Mat Maximum Alert Level . | . . . . Low Security (%) 100 | 100 100 . 100 Level 1 . | . . . . Level 2 . | . . . . Level 3 . | . . . . Level 4 . | . . . . Level 5 . | . . . . High Security . | . . . . Max Security . | . . . . Peak Influence 104 | 5 104 . 84 Initial . | . . . . Average 42 | . 51 . 33 Influence Increases 527 | 5 328 . 194 Destroy 0b10 Robot/C 320 | . 200 . 120 Destroy 0b10 Robot/NC 20 | 5 . . 15 Destroy Leader 94 | . 50 . 44 Trap Triggered on 0b10 40 | . 40 . . Successful Hack 8 | . 8 . . Disable Machine 15 | . . . 15 Lose Combat Pursuer 30 | . 30 . . Influence Decreases 527 | 5 318 10 194 Entered New Map 6 | . . 6 . Time Decay 477 | 5 308 4 160 Lost Part 44 | . 10 . 34 Squads Dispatched 7 | . 4 . 3 Investigation 2 | . 2 . . Extermination . | . . . . Reinforcement 5 | . 2 . 3 Assault . | . . . . Garrison . | . . . . Intercept . | . . . . Searches Triggered . | . . . . Construction Impeded . | . . . . Haulers Reinforced . | . . . . Active Scanning Responses . | . . . . Cargo Convoy Interrupts . | . . . . Stealth | -11 -10 -10 -8 --------- Run | Yrd Mat Sub Mat Distress Signals 3 | . 2 . 1 Communications Jammed . | . . . . Distress Signals . | . . . . Times Spotted 37 | . 17 4 16 Peak Tracking Total 7 | . 4 2 7 Tactical Retreats 1 | . 1 . . Traps | -11 -10 -10 -8 ------- Run | Yrd Mat Sub Mat Traps Triggered 1 | . 1 . . Indirectly . | . . . . Trap Hack Attempts . | . . . . Triggered . | . . . . Disarmed . | . . . . Reprogrammed 4 | . 4 . . Reused 4 | . 4 . . Traps Extracted . | . . . . Installed . | . . . . Triggered 4 | . 4 . . Most Traps Carried 1 | . . 1 1 Machines | -11 -10 -10 -8 ---------- Run | Yrd Mat Sub Mat Machines Disabled 1 | . . . 1 Max in Single Turn 1 | . . . 1 Machines Repaired . | . . . . Machines Dismantled . | . . . . Machines Sabotaged . | . . . . Overloaded Fab Kills . | . . . . Hacking | -11 -10 -10 -8 --------- Run | Yrd Mat Sub Mat Machines Accessed 6 | . 6 . . Terminals 5 | . 5 . . Fabricators . | . . . . Repair Stations . | . . . . Recycling Units 1 | . 1 . . Scanalyzers . | . . . . Garrison Access . | . . . . Total Hacks 15 | . 15 . . Successful 7 | . 7 . . Failed 8 | . 8 . . Catastrophic 1 | . 1 . . Database Lockouts . | . . . . Manual 2 | . 2 . . Terminals 12 | . 12 . . Fabricators . | . . . . Repair Stations . | . . . . Recycling Units 3 | . 3 . . Scanalyzers . | . . . . Garrison Access . | . . . . Terminal Hacks 4 | . 4 . . Prototype ID Bank 2 | . 2 . . Reprogram Traps 1 | . 1 . . Recall Investigation 1 | . 1 . . Fabricator Hacks . | . . . . Repair Station Hacks . | . . . . Recycling Unit Hacks 1 | . 1 . . Report Inventory 1 | . 1 . . Scanalyzer . | . . . . Garrison Access Hacks . | . . . . Unauthorized Hacks 2 | . 2 . . Terminals 2 | . 2 . . Botnet 2 | . 2 . . Fabricators . | . . . . Repair Stations . | . . . . Recycling Units . | . . . . Scanalyzers . | . . . . Garrison Access . | . . . . Data Cores Recovered . | . . . . Used . | . . . . Hacking Detections 6 | . 6 . . Full Trace Events 1 | . 1 . . Feedback Events . | . . . . Feedback Blocked . | . . . . Robot Schematics Acquired . | . . . . Robots Built . | . . . . Authchips . | . . . . Time . | . . . . Total Robot Build Rating . | . . . . Part Schematics Acquired . | . . . . Parts Built . | . . . . Authchips . | . . . . Time . | . . . . Total Part Build Rating . | . . . . Parts Repaired . | . . . . Time . | . . . . Parts Recycled . | . . . . Recycled Matter . | . . . . Retrieved Matter . | . . . . Retrieved Components . | . . . . Parts Scanalyzed . | . . . . Part Schematics Acquired . | . . . . Parts Damaged . | . . . . Bothacking | -11 -10 -10 -8 ------------ Run | Yrd Mat Sub Mat Used RIF Installer . | . . . . Robots Hacked . | . . . . Non-combat . | . . . . Combat . | . . . . Robot Hacks Applied . | . . . . Relay Couplers Released . | . . . . Fabnet Peak Effective % . | . . . . Robots Rewired . | . . . . Allies Hacked . | . . . . Hacks Repelled . | . . . . Allies | -11 -10 -10 -8 -------- Run | Yrd Mat Sub Mat Total Allies . | . . . . Largest Group . | . . . . Highest-Rated Group . | . . . . Highest-Rated Ally . | . . . . Total Orders . | . . . . Ally Attacks . | . . . . Total Damage . | . . . . Kills . | . . . . Allies Corrupted . | . . . . Allies Melted . | . . . . Intel | -11 -10 -10 -8 ------- Run | Yrd Mat Sub Mat Active Infowar (turns) 2446 | 3 701 1622 120 Terrain 1075 | 3 701 251 120 Structural 1371 | . . 1371 . Robot Analysis Total . | . . . . Derelict Logs Recovered 1 | . . 1 . Drone Launches . | . . . . Drone Recoveries . | . . . . Exploration | -11 -10 -10 -8 ------------- Run | Yrd Mat Sub Mat Turns Passed 2778 | 61 701 1622 394 Spaces Moved 1362 | 40 425 724 173 Core 11 | 11 . . . Treads 494 | 1 . 493 . Legs . | . . . . Wheels 857 | 28 425 231 173 Hover . | . . . . Flight . | . . . . Fastest Speed 50 | 50 80 115 130 Average Speed 158 | 73 106 200 130 Slowest Speed 240 | 160 125 240 130 Overloaded Moves . | . . . . Propulsion Burnouts . | . . . . Robots Hopped . | . . . . Potential Cave-ins . | . . . . Cave-ins Triggered . | . . . . Exploration Rate (%) 36 | 4 88 30 23 Regions Visited 3 Branch Regions 1 Pre-discovered Areas . | . . . . Known Exits Taken . | . . . . Unknown Exits Taken 3 | 1 1 1 . Scrap Searched . | . . . . Spaces Dug 1 | . . 1 . Terrain Destroyed 1 | . . 1 . Melee 1 | . . 1 . Projectile . | . . . . AOE . | . . . . Terrain Rammed . | . . . . Walls Destroyed . | . . . . Machines Disabled . | . . . . Actions | -11 -10 -10 -8 --------- Run | Yrd Mat Sub Mat Total 1814 | 60 602 855 297 Wait 280 | 4 111 94 71 Move 1359 | 39 424 723 173 Hop . | . . . . Pick Up 32 | 6 14 2 10 Fast Attach 7 | 5 1 . 1 Attach 15 | 1 3 1 10 Detach . | . . . . Swap 14 | . . 12 2 Drop 13 | . 3 2 8 Fire 88 | 5 46 15 22 Melee 6 | . . 6 . Ram . | . . . . Kick . | . . . . Crush . | . . . . Escape Stasis . | . . . . Rewire . | . . . . Trap . | . . . . Miscellaneous . | . . . . Route ------- -11/Scrapyard -10/Materials (discovered 6 exits: [*Mat x3] / [*Min x2] / [*Sub]) -10/Subcaves -8/Materials History --------- Turn | Location | Event 26 | -11/Scrapyard | Discovered new exit (range 16) 62 | -11/Scrapyard | Entered Materials 71 | -10/Materials | Discovered new exit (range 15) 111 | -10/Materials | Discovered new exit (range 9) 302 | -10/Materials | Build established: Mutant 322 | -10/Materials | Discovered new exit (range 5) 600 | -10/Materials | Discovered new exit (range 10) 652 | -10/Materials | Discovered new exit (range 6) 756 | -10/Materials | Discovered new exit (range 7) 763 | -10/Materials | Entered Subcaves 796 | -10/Subcaves | Discovered new exit (range 2) 826 | -10/Subcaves | Shifting Twisted Machinery released Sub. Monowheel 834 | -10/Subcaves | Learned Materials emergency access door positions 936 | -10/Subcaves | Shifting Twisted Machinery released Sub. Beam Cannon 1014 | -10/Subcaves | Core integrity fell below 50% 1078 | -10/Subcaves | A swath of the cavern ceiling suddenly collapsed 1108 | -10/Subcaves | Core integrity fell below 20% 1574 | -10/Subcaves | Shifting Twisted Machinery released Mak. Laser 1588 | -10/Subcaves | Shifting Twisted Machinery released Sub. Optics 2385 | -10/Subcaves | Entered Materials 2385 | -8/Materials | Evolved 4 slots: Propulsion x1, Utility x2, Weapon x1 2772 | -8/Materials | Core integrity fell below 50% 2778 | -8/Materials | Core integrity fell below 20% 2779 | -8/Materials | Destroyed by X-62 Marksman with Gauss Rifle Last Messages --------------- 02766_ U-05 Engineer builds a Wall. 02768_ Penetrated by Slug. 02768_ Critical hit (Destroy). 02768_ Lgt. Treads destroyed. 02768_ Slug penetrates Wall. 02769_ K-01 Serf collects debris. 02770_ Field Laser destroyed. 02770_ Critical hit (Burn: +37). 02771_ Penetrated by Slug. 02773_ K-01 Serf collects debris. 02773_ Penetrated by Slug. 02773_ U-05 Engineer destroyed. 02774_ Critical hit (Burn: +37). 02774_ Penetrated by Slug. 02776_ Slug penetrates Wall. 02777_ Imp. Heat Sink destroyed. 02778_ K-01 Serf collects debris. 02778_ Penetrated by Slug. 02778_ Critical hit (Burn: +37). 02779_ Penetrated by Slug. Map ----- +----------------------------------------------------+ | | | | | | | | | | | | | | | | | | | | | | | ???????????????????????????????????##????????????? | | ????????????????????????#????###### ####?????????? | | ???????????????????##### ????#[ ! #?????????? | | ???????????????????? ??#! #?????????? | | ???????????????????? ?# #?????????? | | ????????????????????? ??# ** ########??# | | ?????????????????????[ "??# !! [ # [ #??# | | ?????????????????????? ""??#= [ # ==#??# | | ?????????????????????? " ??# # = #??# | | ???????????????#??????? ??# # #??# | | ???????????????# ????? Y ??######+#### ! ????# | | ???????????????# #####/######## % ## ??????# | | ?????????????### x ! ##+######### | | ?????????? /h x % %! | | ???????????????# @%= u ############ | | ?????????????????+##### ####### #????????# | | ??????????????????????# g#?????## ##????????# | | ??????????????????????# g #??????# ^ #?????????# | | ??????????????????????# #??????#^^ #?????????# | | ??????????????????????# g #??????+ ?????????# | | ??????????????????????# #??????# # ????????# | | ??????????????????????# ! #??????# ###???????### | | ??????????????????????!]%! ??????# #????????#### | | ?????????????????????? ! ??????# ?????? | | ????????????????????? ??????# ??????? | | ????????????????????? k ??????# ??????? | | ?????????????????????# ??????# #?????????### | | ?????????????????????## #??????# #??????#????? | | ??????????????????????# ???????# ????????????? | | ??????????????????????# ???????????????????????? | | ??????????????????????? ???????????????????????? | | ????????????????????????????????????????????#????? | | ?????????????????????????????????????????????????? | | ?????????????????????????????????????????????????? | | ?????????????????????????????????????????????????? | | ?????????????????????????????????????????????????? | | ?????????????????????????????????????????????????? | | ???????????????????????????????????????????#?????? | | ????????????????????????????????????????#??????#?? | +----------------------------------------------------+ Best States ------------- Heat Dissipation 45 Coolant Potential 50 Energy Generation 14 Energy Capacity 250 Matter Stores 300 Matter Capacity 300 Sight Range 16 Terrain Scan Range 16 Terrain Scan Density 10 Weapon Shielding 33 Evasion (%) 50 Recoil Reduction 2 Particle Charging 15 Item Schematics ----------------- None Robot Schematics ------------------ None Fabricated ------------ Nothing Repaired ---------- Nothing Alien Tech Used ----------------- None Achievements -------------- None Challenges ------------ None Game ------ Seed ChromaticMachineAnalyzer Manual? 0 Play Time 00:33:52 Cumulative 219.8 hours Start 2025.07.26 @ 15:45:47 End 2025.07.26 @ 16:20:05 Sessions 1 Manual Loads 0 Difficulty Rogue Special Mode None Game No. 142 Rogue 142 Adventurer 0 Explorer 0 Win Type - Total 5 Types 3/0/1/1/0/0/0/0/0/0 Lore% 61 Gallery% 58 Achievement% 52 Wizard Run 0 Options --------- Layout 2 ASCII 0 Keyboard 0 Movement Mouse Keybinds 0 Fullscreen 1 Font 48/Smallcaps Map View 55x44 Zoom Use 0% Tactical HUD 1 Map Filters NONE Filters NONE Steam 1 RUN: f46dba0a-9c35-4794-a0a7-4f663866df78